bitfinex/quotes_BTCUSD_20250206
["timestamp","ask_amount","ask_price","bid_price","bid_amount"]
[1738848617603,0.00022428,98383.0,98382.0,0.43313964]
[1738848622280,0.00022428,98383.0,98382.0,0.13067364]
[1738848622718,0.15268928,98383.0,98382.0,0.01814358]
[1738848622920,0.00022428,98383.0,98382.0,0.011]
[1738848623356,0.15268928,98383.0,98382.0,0.011]
[1738848623582,0.00022428,98383.0,98382.0,0.011]
[1738848623795,0.00022428,98383.0,98382.0,0.0273474]
[1738848624007,0.00022428,98383.0,98382.0,0.28231705]
[1738848624418,0.00022428,98383.0,98382.0,0.28942498]
[1738848626301,0.00022428,98383.0,98382.0,0.43942498]
[1738848633250,2.8e-07,98383.0,98382.0,0.44942498]
[1738848633455,0.00022408,98408.0,98389.0,0.304912]
[1738848633655,0.00022408,98408.0,98407.0,0.152428]
[1738848633881,0.00022408,98408.0,98407.0,0.25594769]
[1738848634061,0.00022408,98408.0,98407.0,0.26213192]
[1738848634285,0.00022408,98408.0,98407.0,0.41213192]
[1738848636299,0.00022408,98408.0,98407.0,0.42113192]
[1738848636502,0.00022408,98408.0,98407.0,0.42847932]
[1738848636929,0.00022408,98408.0,98407.0,0.4682458]
[1738848637133,0.00022408,98408.0,98407.0,0.4712458]
[1738848637505,0.00022408,98408.0,98407.0,0.4682458]
[1738848637890,0.00022408,98408.0,98407.0,0.4712458]
[1738848638208,0.00022408,98408.0,98407.0,0.4942458]
[1738848638412,0.00022408,98408.0,98407.0,0.4822458]
[1738848638609,0.00022408,98408.0,98407.0,0.4912458]
[1738848638820,0.00022408,98408.0,98407.0,0.4722458]
[1738848639022,0.00022408,98408.0,98407.0,0.4632458]
[1738848639235,0.046198,98434.0,98422.0,0.302404]
[1738848639437,0.00068886,98423.0,98422.0,0.42946356]
[1738848639631,0.00068886,98423.0,98422.0,0.43661542]
[1738848640475,0.00068886,98423.0,98422.0,0.44561542]
[1738848641103,3.6e-07,98424.0,98423.0,0.312403]
[1738848641304,0.046198,98434.0,98433.0,0.302387]
[1738848641619,0.04633719,98434.0,98433.0,0.42830791]
[1738848642407,0.04633719,98434.0,98433.0,0.43630791]
[1738848642585,0.04633719,98434.0,98433.0,0.43830791]
[1738848643197,0.04633719,98434.0,98433.0,0.43030791]
[1738848643567,0.04633719,98434.0,98433.0,0.44956593]
[1738848643851,0.04633719,98434.0,98433.0,0.44756593]
[1738848644296,0.04633719,98434.0,98433.0,0.45056593]
[1738848645189,0.04656147,98434.0,98433.0,0.45056593]
[1738848647670,0.70024331,98460.0,98434.0,0.15]
[1738848647877,0.70024331,98460.0,98447.0,0.302366]
[1738848647878,0.1249,98460.0,98447.0,0.302366]
[1738848648083,0.1249,98460.0,98447.0,0.40486965]
[1738848648295,0.1249,98460.0,98447.0,0.41191094]
[1738848648296,0.0002245,98455.0,98447.0,0.41191094]
[1738848649135,0.0002245,98455.0,98447.0,0.41791094]
[1738848649310,2.8e-07,98448.0,98447.0,0.43425834]
[1738848649759,0.00022428,98470.0,98451.0,0.15]
[1738848649986,0.00036319,98466.0,98465.0,0.302338]
[1738848650196,0.00036319,98466.0,98465.0,0.40484165]
[1738848650400,0.00036319,98466.0,98465.0,0.41182946]
[1738848650524,0.00036319,98466.0,98465.0,0.43638537]
[1738848650934,0.00036319,98466.0,98465.0,0.45189393]
[1738848651184,0.00036319,98466.0,98465.0,0.48489393]
[1738848651430,0.00022428,98470.0,98466.0,0.21535116]
[1738848651431,8.9e-07,98467.0,98466.0,0.21535116]
[1738848651573,8.9e-07,98467.0,98466.0,0.31785481]
[1738848651939,8.9e-07,98467.0,98466.0,0.27577493]
[1738848652058,0.01479434,98505.0,98472.0,0.15]
[1738848652265,0.00013909,98499.0,98480.0,0.13890435]
[1738848652467,0.00013909,98499.0,98492.0,0.152295]
[1738848652674,0.00013909,98499.0,98497.0,0.152287]
[1738848652873,0.00013909,98499.0,98498.0,0.0152287]
[1738848653234,0.00013909,98499.0,98498.0,0.02210655]
[1738848653409,0.00013909,98499.0,98498.0,0.00687785]
[1738848653880,0.00013909,98499.0,98495.0,0.152291]
[1738848654083,0.00013909,98499.0,98498.0,0.00687785]
[1738848654479,0.00013909,98499.0,98492.0,0.203061]
[1738848654689,0.00013909,98499.0,98498.0,0.00687785]
[1738848654888,0.00013909,98499.0,98497.0,0.152288]
[1738848655104,0.00013909,98499.0,98498.0,0.00687785]
[1738848655339,0.00013909,98499.0,98498.0,0.10250365]
[1738848655549,0.00013909,98499.0,98498.0,0.1093815]
[1738848657801,0.00024579,98499.0,98498.0,0.1093815]
[1738848659558,0.00024579,98499.0,98498.0,0.26039665]
[1738848659759,0.00024579,98499.0,98498.0,0.2593815]
[1738848660808,0.00022428,98507.0,98506.0,0.384774]
[1738848661021,2.8e-07,98507.0,98506.0,0.53327765]
[1738848661251,0.0002,98529.0,98521.0,0.302251]
[1738848661454,0.0002,98529.0,98521.0,0.43497975]
[1738848661671,0.0002,98529.0,98521.0,0.44175876]
[1738848662130,0.0002,98529.0,98521.0,0.45205858]
[1738848662530,0.0002,98529.0,98521.0,0.47262523]
[1738848662762,0.0002,98529.0,98521.0,0.49562523]
[1738848662965,0.0002,98529.0,98521.0,0.50562523]
[1738848663182,0.0002,98529.0,98528.0,0.32524]
[1738848663410,0.00022428,98547.0,98529.0,0.375984]
[1738848663633,0.00022428,98547.0,98546.0,0.302213]
[1738848663841,2.8e-07,98547.0,98546.0,0.41471665]
[1738848664077,0.00013928,98547.0,98546.0,0.42130592]
[1738848664274,9.928e-05,98547.0,98546.0,0.42130592]
[1738848664387,0.01666667,98560.0,98559.0,0.302193]
[1738848664592,0.01666667,98560.0,98559.0,0.41126725]
[1738848664834,0.014181,98575.0,98574.0,0.152169]
[1738848665038,0.014181,98575.0,98574.0,0.25467265]
[1738848665274,0.014181,98575.0,98574.0,0.26122171]
[1738848665461,0.014181,98575.0,98574.0,0.28120407]
[1738848666020,0.014181,98575.0,98574.0,0.29349286]
[1738848666224,0.014181,98575.0,98574.0,0.34241295]
[1738848666695,0.01409394,98575.0,98574.0,0.33212416]
[1738848666861,0.01409394,98575.0,98574.0,0.519755]
[1738848667058,0.01,98594.0,98593.0,0.15214]
[1738848667260,0.01013898,98594.0,98593.0,0.15214]
[1738848667485,0.01013898,98594.0,98593.0,0.26116543]
[1738848668108,0.01013898,98594.0,98593.0,0.2102838]
[1738848668311,0.01004826,98594.0,98593.0,0.26716543]
[1738848668447,0.01004826,98594.0,98593.0,0.11502543]
[1738848668649,0.01004826,98594.0,98593.0,0.15794552]
[1738848668855,0.01004826,98594.0,98593.0,0.16094552]
[1738848669072,0.01004826,98594.0,98593.0,0.16994552]
[1738848669491,0.01004826,98594.0,98593.0,0.06444187]
[1738848669696,0.01004826,98594.0,98593.0,0.15794552]
[1738848669939,0.01004826,98594.0,98593.0,0.05744187]
[1738848670135,0.01004826,98594.0,98593.0,0.00852178]
[1738848671204,0.01004826,98594.0,98593.0,0.01252178]
[1738848671422,0.08784826,98594.0,98593.0,0.00652178]
[1738848671636,0.08784826,98594.0,98593.0,0.00852178]
[1738848671847,0.08784826,98594.0,98593.0,0.008]
[1738848672053,0.08784826,98594.0,98593.0,0.006]
[1738848672459,0.08784826,98594.0,98593.0,0.008]
[1738848673325,0.31370306,98594.0,98593.0,0.008]
[1738848673529,0.31370306,98594.0,98560.0,0.09125271]
[1738848673530,0.01,98561.0,98560.0,0.09125271]
[1738848673934,0.01,98561.0,98560.0,0.09770215]
[1738848674161,0.01,98561.0,98560.0,0.00644944]
[1738848674432,0.129,98562.0,98548.0,0.23341879]
[1738848674433,0.01,98549.0,98548.0,0.23341879]
[1738848674839,0.01,98550.0,98548.0,0.26121585]
[1738848675042,0.01,98551.0,98550.0,0.152207]
[1738848675251,0.01,98558.0,98557.0,0.302196]
[1738848675471,0.01,98558.0,98557.0,0.40469965]
[1738848675684,0.01,98560.0,98559.0,0.302193]
[1738848675897,0.01,98560.0,98559.0,0.40469665]
[1738848676106,0.01,98560.0,98559.0,0.25899636]
[1738848676334,0.0476,98577.0,98567.0,0.15218]
[1738848676335,0.01,98568.0,98567.0,0.15218]
[1738848676555,0.01,98569.0,98567.0,0.26116487]
[1738848676806,0.01,98574.0,98573.0,0.152171]
[1738848677036,0.01,98578.0,98576.0,0.152165]
[1738848677259,0.0785,98584.0,98573.0,0.00647261]
[1738848677260,0.01,98574.0,98573.0,0.00647261]
[1738848677470,0.01,98558.0,98557.0,0.011]
[1738848677678,0.01,98558.0,98557.0,0.009]
[1738848677899,0.01,98549.0,98548.0,0.44120507]
[1738848678127,0.01,98558.0,98554.0,0.1522]
[1738848678354,0.011,98560.0,98559.0,0.152193]
[1738848678563,0.01,98561.0,98559.0,0.25469665]
[1738848678773,0.01,98561.0,98560.0,0.10250365]
[1738848679880,0.01,98561.0,98560.0,0.1212779]
[1738848680108,0.01,98561.0,98560.0,0.01877425]
[1738848680334,0.0101068,98561.0,98560.0,0.01877425]
[1738848681176,0.01,98556.0,98555.0,0.152197]
[1738848681389,0.01,98556.0,98555.0,0.25470065]
[1738848682219,0.01,98556.0,98555.0,0.2734749]
[1738848682659,0.01,98556.0,98555.0,0.2774749]
[1738848682867,0.01,98559.0,98555.0,0.1252779]
[1738848683078,0.0001068,98561.0,98560.0,0.152191]
[1738848683317,0.0001068,98561.0,98560.0,0.26223692]
[1738848683531,0.0001068,98561.0,98560.0,0.42999664]
[1738848684698,0.0001068,98561.0,98560.0,0.43940135]
[1738848685338,0.0001068,98561.0,98560.0,0.46951258]
[1738848685766,0.0001068,98561.0,98560.0,0.47351258]
[1738848685967,0.0001068,98561.0,98560.0,0.48251258]
[1738848686086,0.0001068,98561.0,98560.0,0.47351258]
[1738848686487,0.0001068,98561.0,98560.0,0.48251258]
[1738848686758,0.0001068,98561.0,98560.0,0.45240135]
[1738848687521,0.0001068,98561.0,98560.0,0.43940135]
[1738848687926,0.0001068,98561.0,98560.0,0.45240135]
[1738848688126,0.01,98578.0,98573.0,0.15]
[1738848688410,0.0826,98594.0,98573.0,0.302171]
[1738848688411,0.01,98574.0,98573.0,0.302171]
[1738848688622,0.01,98574.0,98573.0,0.32640764]
[1738848689212,0.01,98574.0,98573.0,0.34518189]
[1738848689423,0.01,98579.0,98577.0,0.152165]
[1738848689675,0.01,98578.0,98576.0,0.355055]
[1738848689891,0.0826,98594.0,98576.0,0.355055]
[1738848689892,0.01,98577.0,98576.0,0.152166]
[1738848690306,0.01,98578.0,98576.0,0.152166]
[1738848690523,0.01,98577.0,98576.0,0.152166]
[1738848690731,0.01,98577.0,98576.0,0.17094025]
[1738848690948,7e-05,98596.0,98594.0,0.15]
[1738848691173,7e-05,98596.0,98595.0,0.40464065]
[1738848691598,7e-05,98596.0,98595.0,0.4234149]
[1738848692235,7e-05,98596.0,98595.0,0.43281961]
[1738848692665,7e-05,98596.0,98595.0,0.44181961]
[1738848692871,0.01007,98596.0,98595.0,0.42704536]
[1738848693084,0.01007,98596.0,98595.0,0.27490836]
[1738848693302,0.01007,98596.0,98595.0,0.02240471]
[1738848693303,0.09007,98596.0,98595.0,0.02240471]
[1738848693518,0.13677,98596.0,98595.0,0.02240471]
[1738848694162,0.13677,98596.0,98595.0,0.01340471]
[1738848694585,0.13677,98596.0,98595.0,0.01840471]
[1738848694846,0.01,98581.0,98577.0,0.202886]
[1738848695062,0.01,98581.0,98580.0,0.15216]
[1738848695267,0.01,98581.0,98580.0,0.25466365]
[1738848695483,0.01,98581.0,98580.0,0.26141404]
[1738848696123,0.01,98581.0,98580.0,0.27088251]
[1738848696344,0.01,98594.0,98582.0,0.15]
[1738848696541,7e-05,98596.0,98595.0,0.152137]
[1738848696756,0.01007,98596.0,98595.0,0.25464065]
[1738848696964,0.01007,98596.0,98595.0,0.00670633]
[1738848697384,0.01,98595.0,98593.0,0.202852]
[1738848697614,0.01007,98596.0,98595.0,0.302137]
[1738848697824,0.01007,98596.0,98595.0,0.41410912]
[1738848698326,0.01007,98596.0,98595.0,0.41910912]
[1738848698487,0.01007,98596.0,98595.0,0.42078859]
[1738848698688,0.01007,98596.0,98595.0,0.41132012]
[1738848698898,0.01007,98596.0,98595.0,0.41632012]
[1738848699102,0.1374867,98613.0,98595.0,0.12365259]
[1738848699301,0.079,98618.0,98601.0,0.152127]
[1738848699506,0.152105,98616.0,98600.0,0.152129]
[1738848699702,0.152105,98616.0,98602.0,0.00666407]
[1738848699914,0.079,98618.0,98607.0,0.152117]
[1738848700114,0.079,98618.0,98610.0,0.152113]
[1738848700375,0.079,98618.0,98608.0,0.01612063]
[1738848700510,0.079,98618.0,98613.0,0.152108]
[1738848700689,0.079,98618.0,98616.0,0.152104]
[1738848700890,0.079,98618.0,98614.0,0.00663825]
[1738848701184,0.202765,98637.0,98608.0,0.00946947]
[1738848701185,0.0821,98636.0,98615.0,0.25250365]
[1738848701389,0.0821,98636.0,98620.0,0.302098]
[1738848701586,0.0821,98636.0,98620.0,0.40460165]
[1738848703344,0.0821,98636.0,98620.0,0.40660165]
[1738848703502,0.0821,98636.0,98620.0,0.41607112]
[1738848704146,0.0821,98636.0,98620.0,0.42307112]
[1738848704452,0.0821,98636.0,98620.0,0.41607112]
[1738848704658,0.0821,98636.0,98620.0,0.16746947]
[1738848704864,0.0821,98636.0,98620.0,0.31356747]
[1738848705063,0.0821,98636.0,98620.0,0.16146947]
[1738848705064,0.234175,98636.0,98620.0,0.16146947]
[1738848705279,0.0821,98636.0,98620.0,0.32156747]
[1738848705483,0.0821,98636.0,98620.0,0.31956747]
[1738848705687,0.0821,98636.0,98620.0,0.32156747]
[1738848706606,0.0821,98636.0,98620.0,0.42407112]
[1738848706759,0.0821,98636.0,98620.0,0.44296488]
[1738848707170,0.0821,98636.0,98620.0,0.18836323]
[1738848707366,0.01666667,98643.0,98620.0,0.03836323]
[1738848707367,0.32931025,98621.0,98620.0,0.03836323]
[1738848707729,0.48140725,98621.0,98620.0,0.02836323]
[1738848707845,0.2789036,98621.0,98620.0,0.03836323]
[1738848708043,0.2789036,98621.0,98620.0,0.03036323]
[1738848708267,0.2789036,98621.0,98620.0,0.01146947]
[1738848708490,0.2789036,98621.0,98620.0,0.01646947]
[1738848708686,0.2789036,98621.0,98620.0,0.00946947]
[1738848708898,0.197801,98619.0,98599.0,0.15213]
[1738848709311,0.152107,98615.0,98596.0,0.202847]
[1738848709638,0.202798,98620.0,98597.0,0.15]
[1738848709846,0.202807,98616.0,98597.0,0.1566385]
[1738848710077,0.152111,98613.0,98597.0,0.1566385]
[1738848710296,0.1268066,98621.0,98597.0,0.25914215]
[1738848710488,0.1268066,98621.0,98598.0,0.11195534]
[1738848710914,0.1268066,98621.0,98598.0,0.01608804]
[1738848711264,0.1521,98619.0,98602.0,0.152126]
[1738848711869,0.001,98613.0,98602.0,0.152126]
[1738848712073,0.1521,98619.0,98602.0,0.152126]
[1738848712272,0.1268066,98621.0,98599.0,0.00945169]
[1738848712522,0.1268066,98621.0,98603.0,0.00945169]
[1738848712909,0.152102,98618.0,98603.0,0.00945169]
[1738848713110,0.1268066,98621.0,98603.0,0.00945169]
[1738848713111,0.1268066,98621.0,98610.0,0.152114]
[1738848713313,0.1268066,98621.0,98603.0,0.00945169]
[1738848713492,0.1268066,98621.0,98612.0,0.152109]
[1738848713893,0.1268066,98621.0,98604.0,0.10250365]
[1738848714483,0.1268066,98621.0,98614.0,0.152107]
[1738848714897,0.0001066,98621.0,98620.0,0.152098]
[1738848715523,0.0001066,98621.0,98615.0,0.10250365]
[1738848715889,0.0001066,98621.0,98619.0,0.1521]
[1738848716093,0.0001066,98621.0,98615.0,0.10250365]
[1738848716302,0.0001066,98621.0,98612.0,0.15]
[1738848716704,0.0001066,98621.0,98605.0,0.01893872]
[1738848716921,0.20762698,98620.0,98603.0,0.00022407]
[1738848717065,0.0001066,98621.0,98603.0,0.00022407]
[1738848717677,0.152103,98617.0,98603.0,0.00022407]
[1738848717884,0.152103,98617.0,98605.0,0.001]
[1738848718129,0.152105,98616.0,98605.0,0.001]
[1738848718328,0.0001066,98621.0,98603.0,0.00022407]
[1738848718661,0.0001066,98621.0,98615.0,0.23120879]
[1738848718834,0.0001066,98621.0,98620.0,0.302098]
[1738848719882,6e-07,98621.0,98620.0,0.50890165]
[1738848720710,6e-07,98621.0,98620.0,0.50594252]
[1738848720949,6e-07,98621.0,98620.0,0.40460165]
[1738848721382,6e-07,98621.0,98620.0,0.41783126]
[1738848721627,6e-07,98621.0,98620.0,0.42683126]
[1738848721834,6e-07,98621.0,98620.0,0.42383126]
[1738848722249,6e-07,98621.0,98620.0,0.41983126]
[1738848722654,6e-07,98621.0,98620.0,0.41483126]
[1738848722873,6e-07,98621.0,98620.0,0.40460165]
[1738848723086,6e-07,98621.0,98620.0,0.25750365]
[1738848723442,6e-07,98621.0,98620.0,0.10750365]
[1738848723850,6e-07,98621.0,98620.0,0.41860165]
[1738848724239,6e-07,98621.0,98620.0,0.173]
[1738848724445,6e-07,98621.0,98620.0,0.168]
[1738848724640,6e-07,98621.0,98620.0,0.15]
[1738848724841,6e-07,98621.0,98620.0,0.155]
[1738848725137,6e-07,98621.0,98620.0,0.164]
[1738848725357,6e-07,98621.0,98620.0,0.009]
[1738848725963,6e-07,98621.0,98620.0,0.011]
[1738848726566,6e-07,98621.0,98620.0,0.009]
[1738848726769,6e-07,98621.0,98604.0,0.08120879]
[1738848726982,6e-07,98621.0,98604.0,0.23120879]
[1738848727180,6e-07,98621.0,98620.0,0.004]
[1738848727379,6e-07,98621.0,98604.0,0.23120879]
[1738848727550,0.1520976,98621.0,98620.0,0.00022407]
[1738848727767,0.1520976,98621.0,98620.0,0.00422407]
[1738848727988,0.1520976,98621.0,98620.0,0.00122407]
[1738848728198,0.2019976,98621.0,98620.0,0.00322407]
[1738848729689,0.2812976,98621.0,98620.0,0.00322407]
[1738848730092,0.2812976,98621.0,98620.0,0.00022407]
[1738848732061,0.1292006,98621.0,98620.0,0.00022407]
[1738848735049,6e-07,98621.0,98620.0,0.00022407]
[1738848735687,6e-07,98621.0,98620.0,0.10272772]
[1738848736864,6e-07,98621.0,98620.0,0.10772772]
[1738848737075,6e-07,98621.0,98620.0,0.12767055]
[1738848737271,6e-07,98621.0,98620.0,0.1266566]
[1738848737470,6e-07,98621.0,98620.0,0.12767048]
[1738848737890,6e-07,98621.0,98620.0,0.1266566]
[1738848738070,6e-07,98621.0,98620.0,0.1087416]
[1738848738273,6e-07,98621.0,98620.0,0.1047416]
[1738848738858,6e-07,98621.0,98620.0,0.1037416]
[1738848739068,6e-07,98621.0,98620.0,0.1047416]
[1738848739692,6e-07,98621.0,98620.0,0.1117416]
[1738848739928,6e-07,98621.0,98620.0,0.2617416]
[1738848740147,6e-07,98621.0,98620.0,0.26072772]
[1738848741021,6e-07,98621.0,98620.0,0.27965395]
[1738848742074,6e-07,98621.0,98620.0,0.41282572]
[1738848742534,6e-07,98621.0,98620.0,0.25972772]
[1738848742755,6e-07,98621.0,98620.0,0.25372772]
[1738848742974,6e-07,98621.0,98620.0,0.41282572]
[1738848743304,6e-07,98621.0,98620.0,0.40582572]
[1738848743501,6e-07,98621.0,98620.0,0.41382572]
[1738848743939,6e-07,98621.0,98620.0,0.41282572]
[1738848744343,6e-07,98621.0,98620.0,0.41482572]
[1738848744774,6e-07,98621.0,98620.0,0.54702572]
[1738848745320,6e-07,98621.0,98620.0,0.31232207]
[1738848745525,6e-07,98621.0,98620.0,0.32062894]
[1738848745954,6e-07,98621.0,98620.0,0.30432207]
[1738848746159,6e-07,98621.0,98620.0,0.00222407]
[1738848746644,6e-07,98621.0,98620.0,0.16332207]
[1738848746877,6e-07,98621.0,98620.0,0.01122407]
[1738848747086,6e-07,98621.0,98620.0,0.00222407]
[1738848747285,6e-07,98621.0,98620.0,0.00022407]
[1738848747485,6e-07,98621.0,98620.0,0.00722407]
[1738848747693,6e-07,98621.0,98620.0,0.00222407]
[1738848748095,6e-07,98621.0,98620.0,0.00022407]
[1738848748312,6e-07,98621.0,98620.0,0.00122407]
[1738848749273,6e-07,98621.0,98620.0,0.00622407]
[1738848750393,6e-07,98621.0,98620.0,0.00022407]
[1738848750577,6e-07,98621.0,98620.0,0.10372772]
[1738848750731,6e-07,98621.0,98620.0,0.10872772]
[1738848750933,6e-07,98621.0,98620.0,0.25272772]
[1738848751345,6e-07,98621.0,98620.0,0.25472772]
[1738848751901,6e-07,98621.0,98620.0,0.25272772]
[1738848752342,6e-07,98621.0,98620.0,0.27972772]
[1738848752540,6e-07,98621.0,98620.0,0.28572772]
[1738848752741,6e-07,98621.0,98620.0,0.27972772]
[1738848753172,6e-07,98621.0,98620.0,0.26572772]
[1738848753534,6e-07,98621.0,98620.0,0.26172772]
[1738848753739,6e-07,98621.0,98620.0,0.26672772]
[1738848754292,6e-07,98621.0,98620.0,0.26172772]
[1738848754727,6e-07,98621.0,98620.0,0.26672772]
[1738848755132,6e-07,98621.0,98620.0,0.35298043]
[1738848755477,6e-07,98621.0,98620.0,0.35798043]
[1738848756119,6e-07,98621.0,98620.0,0.34898043]
[1738848756323,6e-07,98621.0,98620.0,0.35798043]
[1738848756523,6e-07,98621.0,98620.0,0.51007843]
[1738848756772,6e-07,98621.0,98620.0,0.49607843]
[1738848756972,6e-07,98621.0,98620.0,0.50507843]
[1738848757151,6e-07,98621.0,98620.0,0.51007843]
[1738848757354,6e-07,98621.0,98620.0,0.50107843]
[1738848757718,6e-07,98621.0,98620.0,0.50507843]
[1738848757870,6e-07,98621.0,98620.0,0.51007843]
[1738848758273,6e-07,98621.0,98620.0,0.41882572]
[1738848759920,6e-07,98621.0,98620.0,0.26882572]
[1738848760658,6e-07,98621.0,98620.0,0.41882572]
[1738848761161,6e-07,98621.0,98620.0,0.41382572]
[1738848761355,6e-07,98621.0,98620.0,0.41782572]
[1738848762017,6e-07,98621.0,98620.0,0.11572772]
[1738848762411,6e-07,98621.0,98620.0,0.10672772]
[1738848762550,6e-07,98621.0,98620.0,0.00422407]
[1738848762762,6e-07,98621.0,98620.0,0.01322407]
[1738848763539,6e-07,98621.0,98620.0,0.00022407]
[1738848763831,6e-07,98621.0,98620.0,0.00922407]
[1738848764009,6e-07,98621.0,98620.0,0.00222407]
[1738848764412,6e-07,98621.0,98620.0,0.00622407]
[1738848764603,6e-07,98621.0,98620.0,0.00822407]
[1738848765495,0.0803006,98621.0,98620.0,0.00822407]
[1738848765942,0.2323976,98621.0,98620.0,0.00822407]
[1738848766155,0.0803006,98621.0,98620.0,0.00822407]
[1738848766534,0.0803006,98621.0,98620.0,0.00022407]
[1738848766742,0.0803006,98621.0,98620.0,0.00122407]
[1738848767156,0.0803006,98621.0,98620.0,0.00422407]
[1738848767380,0.0803006,98621.0,98620.0,0.00022407]
[1738848767586,0.0803006,98621.0,98620.0,0.00122407]
[1738848768832,0.0803006,98621.0,98620.0,0.00422407]
[1738848769743,6e-07,98621.0,98620.0,0.00422407]
[1738848770117,6e-07,98621.0,98620.0,0.15632207]
[1738848770453,6e-07,98621.0,98620.0,0.15532207]
[1738848770851,6e-07,98621.0,98620.0,0.15332207]
[1738848771681,6e-07,98621.0,98620.0,0.25582572]
[1738848771889,6e-07,98621.0,98620.0,0.25882572]
[1738848772128,6e-07,98621.0,98620.0,0.40882572]
[1738848772334,6e-07,98621.0,98620.0,0.40782572]
[1738848772537,6e-07,98621.0,98620.0,0.40482572]
[1738848772741,6e-07,98621.0,98620.0,0.40682572]
[1738848773158,6e-07,98621.0,98620.0,0.41282572]
[1738848773375,6e-07,98621.0,98620.0,0.40682572]
[1738848773583,6e-07,98621.0,98620.0,0.40482572]
[1738848773786,6e-07,98621.0,98620.0,0.41682572]
[1738848774923,6e-07,98621.0,98620.0,0.40782572]
[1738848775249,6e-07,98621.0,98620.0,0.41382572]
[1738848775566,6e-07,98621.0,98620.0,0.41782572]
[1738848778140,6e-07,98621.0,98620.0,0.40882572]
[1738848778389,6e-07,98621.0,98620.0,0.40482572]
[1738848778562,6e-07,98621.0,98620.0,0.40882572]
[1738848778733,6e-07,98621.0,98620.0,0.41782572]
[1738848778932,6e-07,98621.0,98620.0,0.40882572]
[1738848779136,6e-07,98621.0,98620.0,0.40482572]
[1738848779393,6e-07,98621.0,98620.0,0.56182572]
[1738848779552,6e-07,98621.0,98620.0,0.59244239]
[1738848779747,6e-07,98621.0,98620.0,0.60144239]
[1738848780149,6e-07,98621.0,98620.0,0.57844239]
[1738848780350,6e-07,98621.0,98620.0,0.44844239]
[1738848780555,6e-07,98621.0,98620.0,0.40882572]
[1738848781308,6e-07,98621.0,98620.0,0.40482572]
[1738848781738,6e-07,98621.0,98620.0,0.40882572]
[1738848782142,6e-07,98621.0,98620.0,0.41382572]
[1738848782353,6e-07,98621.0,98620.0,0.40482572]
[1738848782504,6e-07,98621.0,98620.0,0.41082572]
[1738848782912,6e-07,98621.0,98620.0,0.41982572]
[1738848785877,6e-07,98621.0,98620.0,0.44282572]
[1738848786702,6e-07,98621.0,98620.0,0.41982572]
[1738848786832,6e-07,98621.0,98620.0,0.41082572]
[1738848787036,6e-07,98621.0,98620.0,0.41982572]
[1738848787829,6e-07,98621.0,98620.0,0.41382572]
[1738848788023,6e-07,98621.0,98620.0,0.41982572]
[1738848788422,6e-07,98621.0,98620.0,0.40482572]
[1738848788669,6e-07,98621.0,98620.0,0.41382572]
[1738848788874,6e-07,98621.0,98620.0,0.41982572]
[1738848790918,6e-07,98621.0,98620.0,0.41382572]
[1738848791352,6e-07,98621.0,98620.0,0.41982572]
[1738848791557,6e-07,98621.0,98620.0,0.41082572]
[1738848791755,6e-07,98621.0,98620.0,0.45045606]
[1738848792070,6e-07,98621.0,98620.0,0.43545606]
[1738848792286,6e-07,98621.0,98620.0,0.44445606]
[1738848792558,6e-07,98621.0,98620.0,0.44145606]
[1738848793028,6e-07,98621.0,98620.0,0.45045606]
[1738848793358,6e-07,98621.0,98620.0,0.41082572]
[1738848793813,6e-07,98621.0,98620.0,0.44145255]
[1738848793924,0.023,98646.0,98645.0,0.15206]
[1738848794129,0.02346339,98646.0,98645.0,0.25910872]
[1738848795206,0.02346339,98646.0,98645.0,0.40910872]
[1738848795420,0.00046339,98646.0,98645.0,0.40910872]
[1738848795627,0.00046339,98646.0,98645.0,0.42110872]
[1738848796188,0.00046339,98646.0,98645.0,0.41810872]
[1738848796390,0.00046339,98646.0,98645.0,0.41210872]
[1738848797000,0.0147011,98672.0,98659.0,0.302038]
[1738848797227,0.0147011,98672.0,98659.0,0.40454165]
[1738848797463,0.00024552,98660.0,98659.0,1.03383494]
[1738848797659,0.00024552,98660.0,98659.0,0.95113494]
[1738848798009,0.00024552,98660.0,98659.0,0.40923494]
[1738848798870,0.00024552,98660.0,98659.0,0.41423494]
[1738848799039,0.00024552,98660.0,98659.0,0.43331937]
[1738848799245,0.00024552,98660.0,98659.0,0.41931937]
[1738848799454,0.023,98713.0,98679.0,0.162006]
[1738848799634,0.02283056,98716.0,98688.0,0.01]
[1738848799826,0.15,98719.0,98680.0,0.11709577]
[1738848799827,0.13822297,98710.0,98680.0,0.11709577]
[1738848800024,0.13822297,98710.0,98689.0,0.00457423]
[1738848800230,0.151969,98704.0,98680.0,0.10250365]
[1738848800513,0.34083797,98710.0,98679.0,0.00013882]
[1738848800692,0.10250365,98710.0,98681.0,0.00458569]
[1738848800848,0.10250365,98710.0,98680.0,0.01]
[1738848800849,0.15,98719.0,98686.0,0.01]
[1738848801050,0.15,98717.0,98686.0,0.161996]
[1738848801291,0.0206256,98720.0,98695.0,0.01]
[1738848801493,0.0206256,98720.0,98696.0,0.00456421]
[1738848801693,0.0009747,98727.0,98705.0,0.151967]
[1738848801694,0.01015961,98726.0,98705.0,0.151967]
[1738848801871,0.01015961,98726.0,98707.0,0.151964]
[1738848802077,0.01015961,98726.0,98708.0,0.00453449]
[1738848802276,0.023,98725.0,98708.0,0.00453449]
[1738848802501,0.1283,98724.0,98709.0,0.01]
[1738848802709,0.1283,98724.0,98710.0,0.00453163]
[1738848802927,0.1283,98724.0,98710.0,0.00678002]
[1738848803270,0.15,98739.0,98710.0,0.00678002]
[1738848803381,0.202535,98748.0,98711.0,0.10250365]
[1738848803586,0.00013882,98740.0,98719.0,0.01]
[1738848803785,0.00013882,98740.0,98733.0,0.01]
[1738848803999,0.00013882,98740.0,98733.0,0.11250365]
[1738848804211,0.00013882,98740.0,98734.0,0.00671271]
[1738848804408,0.00013882,98740.0,98739.0,0.01]
[1738848804874,0.00013882,98740.0,98739.0,0.0167018]
[1738848805034,0.00013882,98740.0,98739.0,0.0067018]
[1738848805249,0.00013882,98740.0,98739.0,0.12920545]
[1738848805460,0.00013882,98740.0,98739.0,0.12250365]
[1738848805664,0.00013882,98740.0,98739.0,0.11920545]
[1738848805947,0.00013882,98740.0,98739.0,0.13520545]
[1738848806802,0.00013882,98740.0,98739.0,0.11520545]